bitfinex/quotes_SOLUSD_20250712
["timestamp","ask_amount","ask_price","bid_price","bid_amount"]
[1752324036290,0.72,160.07,160.06,33.18]
[1752324036869,4.64191917,160.07,160.03,33.16]
[1752324038380,3.92191917,160.05,160.02,33.18]
[1752324038571,0.72,160.05,160.02,33.18]
[1752324039003,3.92191917,160.06,160.02,33.18]
[1752324039342,32.1625,160.09,160.02,33.18]
[1752324039343,4.64191917,160.05,160.02,33.18]
[1752324039778,0.72,160.04,160.0,10.0]
[1752324039973,3.92191917,160.02,160.0,10.0]
[1752324040180,3.92191917,160.03,160.0,10.0]
[1752324040581,4.64191917,160.04,160.0,10.0]
[1752324041497,4.64191917,160.03,160.0,10.0]
[1752324041882,3.92191917,160.01,160.0,10.0]
[1752324042279,156.61381917,160.01,160.0,10.0]
[1752324042472,3.92191917,160.02,160.0,10.0]
[1752324042674,4.64191917,160.01,160.0,10.0]
[1752324044285,0.67,160.03,160.0,10.0]
[1752324044482,145.5,160.04,160.01,3.92191917]
[1752324044686,145.5,160.04,160.02,66.34]
[1752324045289,145.5,160.04,160.0,10.0]
[1752324045290,4.59191917,160.03,160.0,10.0]
[1752324045494,4.59191917,160.02,160.0,10.0]
[1752324046606,0.67,160.02,160.0,10.0]
[1752324046840,4.59191917,160.02,160.0,10.06]
[1752324047378,3.92191917,160.03,160.0,10.0]
[1752324047595,149.42191917,160.04,160.0,10.0]
[1752324047800,145.5,160.04,160.01,33.16]
[1752324047988,145.5,160.04,160.02,3.92191917]
[1752324048182,145.5,160.04,160.03,33.16]
[1752324049116,150.09191917,160.04,160.0,10.0]
[1752324049294,0.67,160.03,160.0,43.16]
[1752324049497,0.67,160.03,160.0,10.0]
[1752324049700,145.5,160.04,160.0,47.76191917]
[1752324050505,146.17,160.04,160.0,47.08191917]
[1752324051294,0.67,160.03,160.0,43.16]
[1752324051509,4.59191917,160.02,160.0,10.0]
[1752324051681,0.67,160.01,160.0,10.0]
[1752324052899,4.59191917,160.01,160.0,10.0]
[1752324053095,6.1106,160.02,160.0,10.0]
[1752324053420,30.59191917,160.03,160.0,10.0]
[1752324053909,26.0,160.03,160.0,10.0]
[1752324054099,149.42191917,160.04,160.0,10.0]
[1752324054296,150.09191917,160.04,160.0,10.0]
[1752324054500,4.59191917,160.03,160.0,10.0]
[1752324055416,145.5,160.04,160.0,14.60191917]
[1752324055705,146.17,160.04,160.0,14.60191917]
[1752324055915,146.17,160.04,160.0,10.68]
[1752324056119,146.17,160.04,160.0,47.76191917]
[1752324056289,146.17,160.04,160.0,14.60191917]
[1752324056484,146.17,160.04,160.0,13.92191917]
[1752324056702,150.09191917,160.04,160.0,43.16]
[1752324058094,145.5,160.08,160.01,2.2113]
[1752324058299,10.0,160.1,160.01,2.2113]
[1752324058300,3.92191917,160.11,160.06,3.92191917]
[1752324058496,0.67,160.1,160.03,0.68]
[1752324058799,3.92191917,160.07,160.04,33.16]
[1752324059402,4.59191917,160.08,160.04,33.16]
[1752324059595,3.92191917,160.08,160.04,33.84]
[1752324059816,26.67,160.1,160.04,33.84]
[1752324060020,3.92191917,160.09,160.04,37.76191917]
[1752324060201,4.59191917,160.09,160.04,37.76191917]
[1752324060818,3.92191917,160.09,160.04,37.08191917]
[1752324061228,3.92191917,160.07,160.02,4.60191917]
[1752324061411,3.92191917,160.06,160.03,33.16]
[1752324061730,6.0764,160.03,160.0,10.0]
[1752324061932,3.92191917,160.01,160.0,10.0]
[1752324062119,4.59191917,160.01,160.0,10.0]
[1752324063500,30.59191917,160.01,160.0,10.0]
[1752324064427,34.51383834,160.01,160.0,10.0]
[1752324064607,3.92191917,159.93,159.88,1.6662]
[1752324064797,3.92191917,159.92,159.87,33.16]
[1752324064997,0.67,159.91,159.86,31.62514703]
[1752324065199,0.67,159.91,159.82,3.22995525]
[1752324065200,3.92191917,159.87,159.83,31.40108551]
[1752324065397,3.92191917,159.87,159.86,32.29514702]
[1752324065613,6.0764,159.9,159.86,32.29514702]
[1752324065815,3.92191917,159.87,159.86,32.29514702]
[1752324066225,3.92191917,159.88,159.86,32.29514702]
[1752324066399,6.0764,159.9,159.86,32.29514702]
[1752324066803,3.92191917,159.87,159.86,32.29514702]
[1752324067202,32.0764,159.9,159.83,31.40108551]
[1752324067408,1e-08,159.86,159.82,31.29999489]
[1752324067921,26.0,159.88,159.87,3.92191917]
[1752324068121,26.0,159.88,159.87,35.24556191]
[1752324068324,26.67,159.88,159.87,35.24556191]
[1752324068518,0.67,159.88,159.87,35.24556191]
[1752324069224,0.67,159.88,159.82,31.29999489]
[1752324069598,0.67,159.88,159.87,31.32364274]
[1752324070335,6.0764,159.9,159.86,31.68514703]
[1752324070508,10.13039067,159.9,159.86,31.68514703]
[1752324070709,6.0764,159.9,159.86,31.68514703]
[1752324071319,149.55399067,159.89,159.86,31.68514703]
[1752324071511,33.16,159.88,159.86,31.68514703]
[1752324071712,149.55399067,159.89,159.86,31.68514703]
[1752324071922,178.66,159.89,159.86,31.68514703]
[1752324072315,145.5,159.88,159.86,31.68514703]
[1752324073226,34.7948,159.88,159.86,31.68514703]
[1752324073719,114.59768767,159.87,159.86,0.06]
[1752324074805,26.0,159.84,159.75,16.78468397]
[1752324075005,26.0,159.84,159.79,0.71]
[1752324075310,26.0,159.83,159.77,0.71]
[1752324075512,26.0,159.83,159.74,17.49468397]
[1752324075707,26.0,159.83,159.76,0.71]
[1752324075905,26.0,159.83,159.77,6.56422034]
[1752324076106,26.0,159.83,159.78,7.27422034]
[1752324076317,26.0,159.84,159.79,0.71]
[1752324076722,26.0,159.84,159.8,0.71]
[1752324076930,26.0,159.84,159.78,0.71]
[1752324077409,26.0,159.79,159.7,9.89334457]
[1752324077631,33.18,159.84,159.7,9.89334457]
[1752324077632,26.0,159.71,159.7,9.18334457]
[1752324077807,127.98027872,159.78,159.7,9.89334457]
[1752324078003,26.0,159.75,159.71,0.71]
[1752324078437,26.0,159.75,159.72,0.71]
[1752324079137,26.0,159.75,159.7,9.18334457]
[1752324081135,26.0,159.75,159.71,0.71]
[1752324081309,31.69147292,159.97,159.74,6.56756779]
[1752324081510,6.3446,159.83,159.75,7.27756779]
[1752324081811,6.3446,159.83,159.77,6.56756779]
[1752324082010,7.87953489,159.87,159.79,6.56756779]
[1752324082315,7.87953489,159.87,159.79,0.71]
[1752324082731,6.3446,159.89,159.79,0.71]
[1752324083229,10.38196253,159.89,159.79,0.71]
[1752324083619,10.38047337,159.89,159.78,6.56756779]
[1752324083806,26.0,159.85,159.74,0.71]
[1752324084002,59.3,159.85,159.74,0.71]
[1752324084412,26.0,159.81,159.71,0.71]
[1752324084808,26.0,159.81,159.71,7.27756779]
[1752324085026,26.0,159.86,159.72,7.27756779]
[1752324085327,26.0,159.81,159.74,6.56756779]
[1752324085635,26.0,159.81,159.75,7.27756779]
[1752324086133,33.36,159.85,159.77,6.56756779]
[1752324086514,33.36,159.85,159.76,7.27756779]
[1752324086841,33.34,159.93,159.77,34.05]
[1752324087024,33.34,159.93,159.81,6.56756779]
[1752324087531,26.0,159.89,159.81,7.27756779]
[1752324087734,26.0,159.89,159.8,0.71]
[1752324088030,114.59768767,159.92,159.77,0.71]
[1752324088031,190.74237164,159.88,159.77,0.71]
[1752324088330,26.0,159.84,159.77,0.71]
[1752324089339,26.0,159.84,159.77,7.27756779]
[1752324089632,26.0,159.84,159.77,0.71]
[1752324090227,26.0,159.84,159.75,0.71]
[1752324090413,26.0,159.84,159.75,7.27756779]
[1752324090620,32.3209,159.84,159.72,0.71]
[1752324090809,32.3209,159.84,159.72,40.63756779]
[1752324091135,32.3209,159.84,159.77,0.06]
[1752324091628,26.0,159.8,159.77,0.06]
[1752324091870,26.0,159.8,159.72,0.71]
[1752324092535,26.0,159.8,159.74,6.56756779]
[1752324092739,114.59768767,159.83,159.75,0.71]
[1752324092947,114.59768767,159.83,159.76,6.56756779]
[1752324093114,114.59768767,159.83,159.77,0.71]
[1752324093311,26.0,159.8,159.77,0.71]
[1752324093707,6.3209,159.84,159.7,9.18334457]
[1752324093913,6.3209,159.84,159.74,6.56756779]
[1752324093914,26.0,159.81,159.74,6.56756779]
[1752324094125,26.0,159.81,159.74,7.27756779]
[1752324094614,26.0,159.81,159.74,0.71]
[1752324095360,6.3209,159.84,159.75,6.56756779]
[1752324095538,33.37,159.87,159.76,7.27756779]
[1752324095755,26.0,159.84,159.76,7.27756779]
[1752324096067,0.03,159.87,159.79,6.06756779]
[1752324096240,0.03,159.87,159.8,0.71]
[1752324096443,26.0,159.86,159.8,0.71]
[1752324096756,0.03,159.87,159.8,0.71]
[1752324097165,26.0,159.86,159.8,0.71]
[1752324097663,26.0,159.86,159.79,0.71]
[1752324098030,26.0,159.86,159.77,0.71]
[1752324098252,26.0,159.82,159.74,0.71]
[1752324099377,5.32175748,159.86,159.76,6.56756779]
[1752324099545,26.0,159.83,159.76,6.56756779]
[1752324099750,26.0,159.83,159.77,7.27756779]
[1752324100059,26.0,159.83,159.78,0.71]
[1752324100265,26.0,159.83,159.79,0.71]
[1752324100563,26.0,159.83,159.8,0.71]
[1752324100758,0.03,159.87,159.81,0.71]
[1752324100982,0.03,159.87,159.82,6.56756779]
[1752324101177,0.03,159.87,159.83,0.71]
[1752324101733,0.03,159.87,159.77,6.5694]
[1752324101939,0.03,159.87,159.79,0.71]
[1752324102367,0.03,159.87,159.79,7.27756779]
[1752324102545,0.03,159.87,159.8,0.71]
[1752324102745,0.03,159.87,159.8,2.364]
[1752324102939,0.03,159.87,159.82,6.56756779]
[1752324103257,0.03,159.87,159.85,6.56756779]
[1752324103454,0.03,159.87,159.84,6.56756779]
[1752324103841,26.0,159.91,159.85,0.71]
[1752324104234,114.59768767,159.94,159.85,0.71]
[1752324104647,114.59768767,159.94,159.86,6.56756779]
[1752324104952,114.59768767,159.94,159.87,0.67]
[1752324105255,26.0,159.91,159.87,0.67]
[1752324105635,26.0,159.91,159.85,0.67]
[1752324107557,26.0,159.91,159.85,7.23756779]
[1752324107740,26.0,159.91,159.86,0.67]
[1752324107948,26.0,159.91,159.87,0.67]
[1752324108956,26.0,159.91,159.85,0.67]
[1752324109564,26.0,159.91,159.85,7.23756779]
[1752324109736,26.0,159.91,159.86,0.67]
[1752324109932,114.59768767,159.94,159.88,6.56756779]
[1752324110244,114.59768767,159.94,159.89,8.88686779]
[1752324110441,114.59768767,159.94,159.9,0.67]
[1752324110643,114.59768767,159.98,159.91,6.56756779]
[1752324110870,114.59768767,159.98,159.92,0.67]
[1752324111035,114.59768767,159.98,159.9,17.45468397]
[1752324111230,114.59768767,159.98,159.91,0.67]
[1752324111450,114.59768767,159.98,159.91,7.23756779]
[1752324111654,114.59768767,159.98,159.92,0.67]
[1752324112046,26.0,159.95,159.92,0.67]
[1752324113638,26.0,159.95,159.89,2.3193]
[1752324113856,0.03,159.94,159.89,2.3193]
[1752324114343,0.03,159.94,159.9,0.67]
[1752324114774,0.03,159.94,159.89,1.6493]
[1752324115057,0.03,159.94,159.89,2.3193]
[1752324115263,0.03,159.94,159.9,0.67]
[1752324115437,0.03,159.94,159.9,7.23756779]
[1752324115638,0.03,159.94,159.91,6.56756779]
[1752324116051,0.03,159.94,159.91,0.67]
[1752324116363,0.03,159.94,159.92,0.67]
[1752324117364,0.03,159.94,159.93,0.67]
[1752324117536,0.03,159.94,159.91,0.67]
[1752324118035,0.03,159.94,159.92,0.67]
[1752324118471,0.03,159.94,159.93,7.23756779]
[1752324118674,33.24,160.03,159.93,7.23756779]
[1752324118863,0.06,160.04,159.95,6.56756779]
[1752324119163,26.0,160.02,159.95,39.76756779]
[1752324119379,6.0303,160.05,159.95,33.87]
[1752324119545,26.06,160.01,159.91,33.2]
[1752324119741,27.5545,159.99,159.89,1.6493]
[1752324119947,26.0,159.95,159.87,0.67]
[1752324120181,26.0,159.95,159.88,6.56756779]
[1752324120464,26.0,159.95,159.89,0.67]
[1752324120844,26.0,159.95,159.89,7.23756779]
[1752324121059,26.0,159.95,159.9,0.67]
[1752324121264,26.0,159.95,159.91,0.67]
[1752324122447,26.0,159.95,159.89,0.67]
[1752324122665,26.0,159.95,159.88,33.2]
[1752324122666,114.59768767,159.94,159.87,0.67]
[1752324122846,26.0,159.91,159.85,2.2386]
[1752324123046,114.59768767,159.93,159.85,2.2386]
[1752324123047,140.65768767,159.9,159.85,0.06]
[1752324123246,114.59768767,159.89,159.85,0.06]
[1752324123466,26.0,159.86,159.85,0.06]
[1752324123847,140.59768767,159.89,159.85,0.06]
[1752324124682,140.59768767,159.89,159.86,0.67]
[1752324124844,140.59768767,159.89,159.85,0.73]
[1752324125994,0.06,159.88,159.85,0.06]
[1752324126177,0.06,159.87,159.85,0.06]
[1752324126377,140.59768767,159.89,159.85,0.06]
[1752324126575,140.65768767,159.89,159.85,0.06]
[1752324126754,140.59768767,159.89,159.85,0.06]
[1752324127493,140.65768767,159.89,159.85,0.06]
[1752324127660,0.06,159.88,159.85,0.06]
[1752324127978,26.0,159.86,159.85,0.06]
[1752324128910,114.59768767,159.89,159.85,0.06]
[1752324129183,26.0,159.86,159.85,0.06]
[1752324130987,26.0,159.86,159.85,0.73]
[1752324131281,26.0,159.86,159.85,0.06]
[1752324132777,0.06,159.86,159.85,0.06]
[1752324138886,6.1045,159.86,159.85,0.06]
[1752324139418,26.97665233,159.86,159.85,0.06]
[1752324140373,6.1045,159.86,159.85,0.06]
[1752324141306,10.19115185,159.86,159.85,0.06]
[1752324143207,6.1045,159.86,159.85,0.06]
[1752324143399,22.88918397,159.86,159.85,0.06]
[1752324144213,26.97668205,159.86,159.85,0.06]
[1752324146217,45.71668205,159.86,159.85,0.06]
[1752324147220,26.0,159.82,159.74,0.72]
[1752324147524,26.0,159.78,159.74,0.72]
[1752324148021,26.0,159.78,159.75,0.72]
[1752324148195,26.0,159.77,159.76,0.72]
[1752324148597,26.0,159.75,159.74,0.72]
[1752324148814,26.0,159.75,159.72,0.72]
[1752324149004,26.0,159.74,159.73,0.72]
[1752324151327,145.5,159.76,159.73,0.72]
[1752324151510,145.56,159.84,159.73,0.72]
[1752324151831,145.5,159.83,159.74,6.56756779]
[1752324152004,145.5,159.83,159.75,0.72]
[1752324152204,145.5,159.83,159.75,7.28756779]
[1752324152420,26.0,159.8,159.76,0.72]
[1752324152604,145.5,159.83,159.76,0.72]
[1752324152804,26.0,159.8,159.76,0.72]
[1752324153121,145.5,159.83,159.76,0.72]
[1752324153317,26.0,159.79,159.77,0.72]
[1752324154023,26.0,159.79,159.75,0.72]
[1752324154407,59.2,159.8,159.75,0.72]
[1752324155134,59.26,159.8,159.73,0.72]
[1752324155425,59.26,159.8,159.75,0.72]
[1752324155622,59.2,159.8,159.75,0.72]
[1752324156611,145.5,159.79,159.75,0.72]
[1752324156813,26.0,159.76,159.73,0.72]
[1752324157221,26.0,159.76,159.71,1.5641]
[1752324157222,26.0,159.76,159.74,0.72]
[1752324157822,26.0,159.76,159.75,0.72]
[1752324158730,26.0,159.76,159.73,0.72]
[1752324158928,26.0,159.76,159.74,0.72]
[1752324159324,26.0,159.76,159.72,0.72]
[1752324159529,26.0,159.76,159.74,0.72]
[1752324160134,26.0,159.76,159.75,0.72]
[1752324160933,145.5,159.78,159.75,0.72]
[1752324161138,26.0,159.76,159.75,0.72]
[1752324161638,26.0,159.76,159.73,0.72]
[1752324161941,26.0,159.76,159.74,0.72]
[1752324162134,26.0,159.76,159.73,0.72]
[1752324162339,26.0,159.75,159.71,2.2841]
[1752324162522,26.0,159.75,159.72,0.72]
[1752324162722,171.5,159.75,159.71,1.5641]
[1752324162911,171.5,159.75,159.72,0.72]
[1752324163329,26.0,159.71,159.7,9.18334457]
[1752324163645,145.5,159.74,159.7,9.18334457]
[1752324163845,171.5,159.74,159.7,9.18334457]
[1752324164146,171.5,159.74,159.71,0.66]
[1752324164839,33.26,159.83,159.72,1.5629]
[1752324165044,4.09049977,159.82,159.73,7.22756779]
[1752324165241,4.09049977,159.82,159.74,0.66]
[1752324165545,26.0,159.8,159.74,0.66]
[1752324166129,59.26,159.81,159.74,0.66]
[1752324166846,0.5,159.8,159.74,0.66]
[1752324167420,4.59700477,159.8,159.74,0.66]
[1752324168246,26.0,159.76,159.72,2.2229]
[1752324168547,26.0,159.76,159.73,0.66]
[1752324168931,26.0,159.75,159.73,0.66]
[1752324169630,26.0,159.75,159.74,0.66]
[1752324170336,26.0,159.75,159.72,1.5629]
[1752324170337,26.0,159.75,159.72,2.2229]
[1752324170728,26.0,159.75,159.73,0.66]
[1752324171647,26.0,159.75,159.74,0.66]
[1752324172248,26.0,159.75,159.72,2.2229]
[1752324172457,26.0,159.78,159.72,2.2229]
[1752324172629,4.10022054,159.77,159.72,2.2229]
[1752324173263,145.5,159.76,159.72,2.2229]
[1752324174236,145.5,159.76,159.73,0.66]
[1752324174730,145.5,159.76,159.72,1.5629]
[1752324174930,145.5,159.75,159.72,2.2229]
[1752324175227,145.5,159.75,159.7,9.84334457]
[1752324175429,145.5,159.75,159.71,0.66]
[1752324175624,145.5,159.75,159.7,9.18334457]
[1752324175625,26.0,159.72,159.7,9.18334457]
[1752324175829,26.0,159.71,159.7,9.18334457]
[1752324176459,26.06,159.71,159.7,9.18334457]
[1752324176829,26.0,159.71,159.7,9.18334457]
[1752324177459,26.0,159.71,159.7,9.84334457]
[1752324177753,145.5,159.74,159.7,9.84334457]
[1752324177949,26.0,159.73,159.7,9.84334457]
[1752324178130,26.0,159.72,159.71,0.66]
[1752324180559,145.5,159.74,159.71,0.66]
[1752324180766,145.5,159.74,159.71,2.1966]
[1752324181070,145.5,159.74,159.71,8.76416779]
[1752324181365,145.5,159.74,159.72,0.66]
[1752324181529,26.0,159.76,159.72,0.66]
[1752324181737,145.5,159.79,159.72,0.66]
[1752324181993,145.5,159.79,159.72,7.22756779]
[1752324182129,145.5,159.79,159.73,0.66]
[1752324182335,26.0,159.76,159.73,0.66]
[1752324184148,25.5,159.76,159.73,0.66]
[1752324184353,145.5,159.84,159.73,0.66]
[1752324184566,0.06,159.83,159.73,0.66]
[1752324184730,4.1759732,159.83,159.74,33.2]
[1752324184932,0.06,159.82,159.74,0.66]
[1752324185229,33.2,159.81,159.74,0.66]
[1752324185447,4.1759732,159.8,159.72,0.66]
[1752324185658,33.26,159.79,159.72,0.66]
[1752324185859,4.17440991,159.78,159.7,9.18334457]
[1752324186056,26.0,159.76,159.7,9.18334457]
[1752324186241,4.17440991,159.75,159.7,9.18334457]
[1752324186444,0.06,159.74,159.7,9.18334457]
[1752324186650,4.11440991,159.75,159.71,0.66]
[1752324186859,59.2,159.76,159.7,9.84334457]
[1752324187061,59.2,159.76,159.71,0.66]
[1752324187266,59.26,159.76,159.7,9.18334457]
[1752324187758,0.5,159.75,159.7,9.18334457]
[1752324187956,0.5,159.75,159.7,9.84334457]
[1752324188349,4.67576448,159.75,159.7,9.84334457]
[1752324188544,4.67576448,159.75,159.7,9.18334457]
[1752324188949,4.67576448,159.75,159.7,9.84334457]
[1752324189272,4.67539612,159.75,159.7,9.84334457]
[1752324189459,0.5,159.75,159.71,0.66]
[1752324189768,0.5,159.75,159.72,6.56756779]
[1752324189943,0.5,159.75,159.73,7.22756779]
[1752324190135,4.11706714,159.81,159.74,1.6105]
[1752324190348,3.61706714,159.81,159.74,2.2705]
[1752324190551,3.61706714,159.81,159.74,1.6105]
[1752324190552,0.06,159.8,159.74,1.6105]
[1752324190863,3.61706714,159.81,159.74,1.6105]
[1752324190864,3.61706714,159.81,159.74,2.2705]
[1752324191162,26.0,159.79,159.74,2.2705]
[1752324191346,26.0,159.79,159.75,0.66]
[1752324191549,26.0,159.79,159.76,0.66]
[1752324193062,26.0,159.79,159.77,0.66]
[1752324193550,26.0,159.79,159.75,0.66]
[1752324193746,25.5,159.79,159.75,0.66]
[1752324194741,25.5,159.79,159.74,1.6105]
[1752324194975,25.5,159.79,159.7,15.63954457]
[1752324194976,146.06,159.78,159.7,11.37904457]
[1752324195171,145.5,159.77,159.7,11.37904457]
[1752324195677,145.5,159.77,159.71,0.66]
[1752324195855,26.0,159.74,159.71,0.66]
[1752324196353,26.0,159.74,159.72,0.66]
[1752324196754,26.0,159.74,159.73,0.66]
[1752324197068,145.5,159.77,159.73,0.66]
[1752324197069,171.5,159.77,159.73,0.66]
[1752324197457,171.5,159.77,159.74,0.66]
[1752324197760,145.5,159.77,159.74,7.22756779]
[1752324197965,145.5,159.77,159.74,0.66]
[1752324198162,145.5,159.77,159.75,0.66]
[1752324198341,145.5,159.77,159.76,0.66]
[1752324198740,145.5,159.77,159.73,6.56756779]
[1752324198961,145.5,159.77,159.74,0.66]
[1752324199158,145.5,159.77,159.75,0.66]
[1752324199349,26.0,159.81,159.76,0.66]
[1752324199756,145.5,159.84,159.76,7.22756779]
[1752324199951,145.5,159.84,159.77,2.1693]
[1752324200171,145.5,159.84,159.78,0.66]
[1752324200478,145.5,159.84,159.78,7.22756779]
[1752324200674,145.5,159.84,159.79,0.66]
[1752324201052,171.5,159.84,159.79,0.66]
[1752324202465,171.5,159.84,159.8,0.66]
[1752324202658,171.5,159.84,159.78,0.66]
[1752324202974,26.0,159.81,159.78,0.66]
[1752324203951,26.0,159.81,159.77,1.5093]
[1752324204151,0.03,159.79,159.77,2.1693]
[1752324205568,0.03,159.79,159.73,2.2761]
[1752324205765,0.03,159.79,159.75,0.66]
[1752324206576,0.03,159.79,159.76,0.66]
[1752324206874,0.03,159.79,159.74,0.66]
[1752324207454,0.03,159.79,159.75,0.66]
[1752324208380,0.03,159.79,159.73,2.2761]
[1752324209286,0.03,159.79,159.74,0.66]
[1752324210083,0.03,159.79,159.75,0.66]
[1752324210584,4.14282848,159.79,159.73,2.2761]
[1752324211191,4.20282848,159.79,159.73,0.66]
[1752324211365,4.20282848,159.79,159.72,33.18]
[1752324211565,4.20282848,159.79,159.72,33.84]
[1752324211960,30.20282848,159.79,159.72,33.84]
[1752324212162,26.0,159.76,159.72,33.84]
[1752324212390,26.0,159.77,159.73,0.66]
[1752324213190,26.0,159.77,159.72,33.18]
[1752324213368,26.0,159.77,159.73,0.66]
[1752324213564,26.0,159.77,159.72,33.18]
[1752324213565,26.0,159.75,159.72,33.18]
[1752324213785,26.0,159.75,159.7,9.18334457]
[1752324213982,145.56,159.74,159.7,9.18334457]
[1752324214174,26.0,159.71,159.7,9.18334457]
[1752324214987,26.06,159.71,159.7,9.18334457]
[1752324215179,26.0,159.71,159.7,9.18334457]
[1752324216385,26.0,159.71,159.7,9.84334457]
[1752324216687,145.5,159.74,159.7,9.84334457]
[1752324217080,145.5,159.74,159.71,0.66]
[1752324217273,26.0,159.76,159.72,0.66]
[1752324217472,26.0,159.76,159.73,0.66]
[1752324217674,26.06,159.76,159.7,9.84334457]
[1752324217874,4.11221266,159.75,159.7,9.84334457]
[1752324218073,4.11221266,159.75,159.71,0.66]
[1752324218671,26.06,159.76,159.71,0.66]
[1752324218993,4.17359752,159.75,159.7,9.18334457]
[1752324219183,0.06,159.74,159.7,9.18334457]
[1752324220578,4.11359752,159.75,159.7,9.18334457]
[1752324220790,26.0,159.76,159.71,0.66]
[1752324220982,26.0,159.76,159.72,0.66]
[1752324221583,145.53,159.79,159.73,0.66]
[1752324221782,4.11250894,159.78,159.73,0.66]
[1752324221978,26.0,159.76,159.74,0.66]
[1752324222284,26.0,159.76,159.75,0.66]
[1752324222495,145.53,159.79,159.75,0.66]
[1752324222683,145.53,159.79,159.76,0.66]
[1752324222989,26.0,159.77,159.76,0.66]
[1752324223675,145.53,159.79,159.76,0.66]
[1752324224190,26.0,159.76,159.72,6.56756779]
[1752324224381,145.53,159.79,159.72,6.56756779]
[1752324224788,26.0,159.78,159.73,0.68]
[1752324225290,26.0,159.78,159.73,7.24756779]
[1752324225593,145.53,159.79,159.74,0.68]
[1752324225972,171.53,159.79,159.74,0.68]
[1752324226893,171.53,159.79,159.75,0.68]
[1752324228396,171.53,159.79,159.76,0.68]
[1752324228992,171.53,159.79,159.72,0.06]
[1752324229185,171.53,159.79,159.74,0.68]
[1752324229495,171.53,159.79,159.75,0.68]
[1752324230198,171.53,159.79,159.76,0.68]
[1752324231487,171.53,159.79,159.74,0.68]
[1752324231698,171.53,159.79,159.72,0.74]
[1752324231879,0.06,159.78,159.72,0.74]
[1752324232195,171.53,159.79,159.72,0.74]
[1752324232404,26.0,159.76,159.72,0.06]
[1752324232902,26.06,159.76,159.72,0.06]
[1752324235004,26.06,159.75,159.72,0.06]
[1752324235299,26.0,159.74,159.72,0.06]
[1752324236295,26.0,159.74,159.73,0.68]
[1752324236474,26.0,159.75,159.73,0.68]
[1752324237474,26.0,159.75,159.72,0.06]
[1752324237696,26.0,159.75,159.74,0.68]
[1752324238597,0.03,159.79,159.74,0.68]
[1752324238895,0.03,159.79,159.72,0.06]
[1752324239076,26.0,159.78,159.74,0.68]
[1752324239886,26.03,159.79,159.74,0.68]
[1752324240281,26.03,159.79,159.72,0.06]
[1752324240282,26.03,159.79,159.75,0.68]
[1752324241389,0.03,159.79,159.76,0.68]
[1752324242405,0.03,159.79,159.74,1.6121]
[1752324242578,26.0,159.77,159.72,0.06]